bitfinex/quotes_BTCUSD_20241130
["timestamp","ask_amount","ask_price","bid_price","bid_amount"]
[1732938751650,1.28045094,96766.0,96765.0,0.10593239]
[1732938752087,1.27145094,96766.0,96765.0,0.10593239]
[1732938752495,1.27945094,96766.0,96765.0,0.10593239]
[1732938753173,0.73805094,96766.0,96765.0,0.10593239]
[1732938758853,0.82548504,96766.0,96765.0,0.10593239]
[1732938758986,0.79456041,96766.0,96765.0,0.10593239]
[1732938759413,0.8254877,96766.0,96765.0,0.10593239]
[1732938759613,0.73597823,96766.0,96765.0,0.10593239]
[1732938759864,0.70505094,96766.0,96765.0,0.10593239]
[1732938760842,0.72805094,96766.0,96765.0,0.10593239]
[1732938762539,0.73801298,96766.0,96765.0,0.10593239]
[1732938763119,0.70708181,96766.0,96765.0,0.10593239]
[1732938763547,0.73801415,96766.0,96765.0,0.10593239]
[1732938764930,0.84084561,96766.0,96765.0,0.10593239]
[1732938766202,0.73801415,96766.0,96765.0,0.10593239]
[1732938774936,0.73001415,96766.0,96765.0,0.23063239]
[1732938775324,0.72101415,96766.0,96765.0,0.22963239]
[1732938776010,0.71950281,96766.0,96765.0,0.22963239]
[1732938777095,0.72750281,96766.0,96765.0,0.23063239]
[1732938777517,0.72850281,96766.0,96765.0,0.23063239]
[1732938777951,0.72550281,96766.0,96765.0,0.23063239]
[1732938778147,0.73450281,96766.0,96765.0,0.23163239]
[1732938778377,0.72850281,96766.0,96765.0,0.23063239]
[1732938778583,0.73450281,96766.0,96765.0,0.23163239]
[1732938780097,0.71150281,96766.0,96765.0,0.23163239]
[1732938780538,0.68057047,96766.0,96765.0,0.23163239]
[1732938784108,0.53057047,96766.0,96765.0,0.23163239]
[1732938790357,0.52457047,96766.0,96765.0,0.23063239]
[1732938790564,0.51557047,96766.0,96765.0,0.22963239]
[1732938790770,0.52657047,96766.0,96765.0,0.23063239]
[1732938801903,0.48001833,96766.0,96765.0,0.23063239]
[1732938802105,0.52808181,96766.0,96765.0,0.23063239]
[1732938804441,0.42473981,96766.0,96765.0,0.24063239]
[1732938804651,0.52808181,96766.0,96765.0,0.24063239]
[1732938805458,0.52408181,96766.0,96765.0,0.24063239]
[1732938805678,0.52708181,96766.0,96765.0,0.24063239]
[1732938806081,0.52408181,96766.0,96765.0,0.24063239]
[1732938806509,0.41573981,96766.0,96765.0,0.23963239]
[1732938806740,0.51908181,96766.0,96765.0,0.23963239]
[1732938806981,0.52308181,96766.0,96765.0,0.23963239]
[1732938807594,0.41973981,96766.0,96765.0,0.23963239]
[1732938810207,0.3168946,96766.0,96765.0,0.23963239]
[1732938812073,0.3148946,96766.0,96765.0,0.23963239]
[1732938812278,0.3108946,96766.0,96765.0,0.23963239]
[1732938812498,0.3118946,96766.0,96765.0,0.23963239]
[1732938813282,0.3128946,96766.0,96765.0,0.23963239]
[1732938815099,0.4162366,96766.0,96765.0,0.23963239]
[1732938817095,0.4162366,96766.0,96765.0,0.16393239]
[1732938817096,0.47253139,96766.0,96765.0,0.16393239]
[1732938817531,0.47253139,96766.0,96765.0,0.10493239]
[1732938817953,0.47253139,96766.0,96765.0,0.11493239]
[1732938818411,0.47253139,96766.0,96765.0,0.10493239]
[1732938822234,0.47253139,96766.0,96765.0,0.07493239]
[1732938825815,0.47253139,96766.0,96765.0,0.20273239]
[1732938826222,0.47339659,96766.0,96765.0,0.20273239]
[1732938831154,0.47339659,96766.0,96765.0,0.21273239]
[1732938832031,0.42684444,96766.0,96765.0,0.21273239]
[1732938833542,0.42184444,96766.0,96765.0,0.21273239]
[1732938838436,0.31850244,96766.0,96765.0,0.21273239]
[1732938838647,0.21565723,96766.0,96765.0,0.20273239]
[1732938838855,0.21565723,96766.0,96765.0,0.21273239]
[1732938839036,0.31899923,96766.0,96765.0,0.13163239]
[1732938840102,0.21565723,96766.0,96765.0,0.13163239]
[1732938840301,0.31899923,96766.0,96765.0,0.13163239]
[1732938844048,0.31899923,96766.0,96765.0,0.12163239]
[1732938844477,0.31626053,96766.0,96765.0,0.12163239]
[1732938846310,0.31626053,96766.0,96765.0,0.19973239]
[1732938846535,0.21291853,96766.0,96765.0,0.19973239]
[1732938847074,0.16636927,96766.0,96765.0,0.19973239]
[1732938848195,0.16636927,96766.0,96765.0,0.20973239]
[1732938849759,0.16636927,96766.0,96765.0,0.31307539]
[1732938850001,0.16636927,96766.0,96765.0,0.20973239]
[1732938850424,0.16636927,96766.0,96765.0,0.31307539]
[1732938851856,0.16636927,96766.0,96765.0,0.20973239]
[1732938852269,0.16636927,96766.0,96765.0,0.31307539]
[1732938853903,0.16636927,96766.0,96765.0,0.20973239]
[1732938854316,0.16636927,96766.0,96765.0,0.31307539]
[1732938855257,0.16636927,96766.0,96765.0,0.20973239]
[1732938855377,0.16536927,96766.0,96765.0,0.20973239]
[1732938855597,0.26771127,96766.0,96765.0,0.20973239]
[1732938855829,0.16436927,96766.0,96765.0,0.21173239]
[1732938856246,0.26771127,96766.0,96765.0,0.21173239]
[1732938856501,0.16436927,96766.0,96765.0,0.21173239]
[1732938856970,0.26771127,96766.0,96765.0,0.21173239]
[1732938857414,0.16436927,96766.0,96765.0,0.21173239]
[1732938857623,0.26771127,96766.0,96765.0,0.21173239]
[1732938858269,0.16436927,96766.0,96765.0,0.21173239]
[1732938858726,0.26771127,96766.0,96765.0,0.21173239]
[1732938859148,0.16436927,96766.0,96765.0,0.21173239]
[1732938859319,0.26771127,96766.0,96765.0,0.21173239]
[1732938860429,0.16436927,96766.0,96765.0,0.21173239]
[1732938862215,0.11782375,96766.0,96765.0,0.21173239]
[1732938862645,0.22116575,96766.0,96765.0,0.21173239]
[1732938867847,0.11782375,96766.0,96765.0,0.31507539]
[1732938869641,0.11782375,96766.0,96765.0,0.3253967]
[1732938870296,0.11782375,96766.0,96765.0,0.31507539]
[1732938872323,0.11282375,96766.0,96765.0,0.31507539]
[1732938875311,0.10782375,96766.0,96765.0,0.31507539]
[1732938877236,0.06128191,96766.0,96765.0,0.31507539]
[1732938877361,0.05628191,96766.0,96765.0,0.31507539]
[1732938889443,0.05628191,96766.0,96765.0,0.21173239]
[1732938889655,0.15962391,96766.0,96765.0,0.08693239]
[1732938890494,0.15962391,96766.0,96765.0,0.07693239]
[1732938891414,0.15962391,96766.0,96765.0,0.08693239]
[1732938892066,0.15962391,96766.0,96765.0,0.08493239]
[1732938892500,0.16262391,96766.0,96765.0,0.08493239]
[1732938893160,0.16462391,96766.0,96765.0,0.08493239]
[1732938893367,0.16062391,96766.0,96765.0,0.08493239]
[1732938893575,0.16162391,96766.0,96765.0,0.08493239]
[1732938893779,0.16062391,96766.0,96765.0,0.08493239]
[1732938894194,0.16162391,96766.0,96765.0,0.08493239]
[1732938894706,0.16062391,96766.0,96765.0,0.08493239]
[1732938895583,0.15962391,96766.0,96765.0,0.08493239]
[1732938896222,0.16062391,96766.0,96765.0,0.08493239]
[1732938896812,0.16062391,96766.0,96765.0,0.08593239]
[1732938900286,0.16062391,96766.0,96765.0,0.13343239]
[1732938901140,0.16062391,96766.0,96765.0,0.08593239]
[1732938903191,0.26346912,96766.0,96765.0,0.08593239]
[1732938905026,0.26446912,96766.0,96765.0,0.08593239]
[1732938905869,0.26346912,96766.0,96765.0,0.08493239]
[1732938906498,0.26446912,96766.0,96765.0,0.08493239]
[1732938906915,0.26546912,96766.0,96765.0,0.08493239]
[1732938908400,0.16262391,96766.0,96765.0,0.08493239]
[1732938909285,0.16162391,96766.0,96765.0,0.08493239]
[1732938909624,0.15962391,96766.0,96765.0,0.08493239]
[1732938912500,0.15962391,96766.0,96765.0,0.08593239]
[1732938912736,0.16462391,96766.0,96765.0,0.08593239]
[1732938912914,0.16762391,96766.0,96765.0,0.08493239]
[1732938913214,0.16862391,96766.0,96765.0,0.08493239]
[1732938913453,0.16362391,96766.0,96765.0,0.08493239]
[1732938913598,0.16062391,96766.0,96765.0,0.08493239]
[1732938914221,0.15962391,96766.0,96765.0,0.08493239]
[1732938920072,0.26246912,96766.0,96765.0,0.07493239]
[1732938925052,0.26846912,96766.0,96765.0,0.07593239]
[1732938925485,0.27346912,96766.0,96765.0,0.07593239]
[1732938925826,0.27746912,96766.0,96765.0,0.07593239]
[1732938926072,0.27346912,96766.0,96765.0,0.07593239]
[1732938926402,0.27646912,96766.0,96765.0,0.07593239]
[1732938929034,0.35783213,96766.0,96765.0,0.07593239]
[1732938929413,0.29946912,96766.0,96765.0,0.07593239]
[1732938929790,0.33043861,96766.0,96765.0,0.07593239]
[1732938931051,0.48043861,96766.0,96765.0,0.07593239]
[1732938934608,0.49043861,96766.0,96765.0,0.07593239]
[1732938935698,0.48743861,96766.0,96765.0,0.07593239]
[1732938936158,0.48443861,96766.0,96765.0,0.07593239]
[1732938936398,0.49343861,96766.0,96765.0,0.07693239]
[1732938938097,0.51924285,96766.0,96765.0,0.07693239]
[1732938940038,0.49343861,96766.0,96765.0,0.07693239]
[1732938941264,0.48343861,96766.0,96765.0,0.07693239]
[1732938947574,0.49343861,96766.0,96765.0,0.07693239]
[1732938950302,0.53923861,96766.0,96765.0,0.07693239]
[1732938954479,0.49343861,96766.0,96765.0,0.07693239]
[1732938962257,0.48343861,96766.0,96765.0,0.07693239]
[1732938965902,0.31043861,96766.0,96765.0,0.20663239]
[1732938966133,0.27946912,96766.0,96765.0,0.20663239]
[1732938966830,0.27146912,96766.0,96765.0,0.20563239]
[1732938967046,0.27146912,96766.0,96765.0,0.20663239]
[1732938967269,0.26746912,96766.0,96765.0,0.20563239]
[1732938967678,0.26746912,96766.0,96765.0,0.20463239]
[1732938967679,0.26546912,96766.0,96765.0,0.20463239]
[1732938967911,0.26546912,96766.0,96765.0,0.20563239]
[1732938969200,0.26546912,96766.0,96765.0,0.21563239]
[1732938971163,0.16262391,96766.0,96765.0,0.21563239]
[1732938974226,0.05928191,96766.0,96765.0,0.21563239]
[1732938975487,0.16262391,96766.0,96765.0,0.21563239]
[1732938994630,0.26546912,96766.0,96765.0,0.21563239]
[1732938994856,0.26546912,96766.0,96765.0,0.13303239]
[1732938995076,0.26546912,96766.0,96765.0,0.08593239]
[1732939005470,0.26546912,96766.0,96765.0,0.07593239]
[1732939005669,0.26546912,96766.0,96765.0,0.08593239]
[1732939017036,0.26546912,96766.0,96765.0,0.07593239]
[1732939017234,0.56856912,96766.0,96765.0,0.07593239]
[1732939017460,0.60954332,96766.0,96765.0,0.07593239]
[1732939017829,0.79556851,96766.0,96765.0,0.07593239]
[1732939018038,0.79556401,96766.0,96765.0,0.07593239]
[1732939018216,0.71237478,96766.0,96765.0,0.07593239]
[1732939018368,0.89839547,96766.0,96765.0,0.07593239]
[1732939019002,0.89539547,96766.0,96765.0,0.07593239]
[1732939019345,0.71837478,96766.0,96765.0,0.07593239]
[1732939019542,0.72337478,96766.0,96765.0,0.07693239]
[1732939020342,0.62054332,96766.0,96765.0,0.07693239]
[1732939020757,0.48044332,96766.0,96765.0,0.07693239]
[1732939021898,0.49044332,96766.0,96765.0,0.07693239]
[1732939022062,0.48044332,96766.0,96765.0,0.07693239]
[1732939023520,0.42646912,96766.0,96765.0,0.07693239]
[1732939023715,0.42646912,96766.0,96765.0,0.12643239]
[1732939024795,0.42646912,96766.0,96765.0,0.20753239]
[1732939025197,0.42146912,96766.0,96765.0,0.20653239]
[1732939025410,0.27146912,96766.0,96765.0,0.20653239]
[1732939025616,0.26746912,96766.0,96765.0,0.20653239]
[1732939026048,0.26746912,96766.0,96765.0,0.20753239]
[1732939026049,0.27646912,96766.0,96765.0,0.20753239]
[1732939026251,0.27646912,96766.0,96765.0,0.20653239]
[1732939026667,0.27446912,96766.0,96765.0,0.20553239]
[1732939027163,0.27446912,96766.0,96765.0,0.21553239]
[1732939027600,0.27846912,96766.0,96765.0,0.21553239]
[1732939029447,0.27446912,96766.0,96765.0,0.21553239]
[1732939031764,0.27446912,96766.0,96765.0,0.16751663]
[1732939036867,0.27446912,96766.0,96765.0,0.03691663]
[1732939045874,0.27446912,96766.0,96765.0,0.16191663]
[1732939047237,0.17162391,96766.0,96765.0,0.16191663]
[1732939049410,0.15962391,96766.0,96765.0,0.16191663]
[1732939049917,0.16062391,96766.0,96765.0,0.16191663]
[1732939050519,0.16062391,96766.0,96765.0,0.16391663]
[1732939051303,0.16062391,96766.0,96765.0,0.16491663]
[1732939051707,0.15962391,96766.0,96765.0,0.16191663]
[1732939052055,0.15962391,96766.0,96765.0,0.16691663]
[1732939053709,0.26246912,96766.0,96765.0,0.16691663]
[1732939057273,0.21592095,96766.0,96765.0,0.16691663]
[1732939072319,0.16937278,96766.0,96765.0,0.16691663]
[1732939073700,0.16886382,96766.0,96765.0,0.16691663]
[1732939077752,0.16972902,96766.0,96765.0,0.16691663]
[1732939080337,0.1042072,96766.0,96765.0,0.16691663]
[1732939081908,0.1042072,96766.0,96765.0,0.08851663]
[1732939087479,0.206679,96768.0,96765.0,0.08851663]
[1732939087683,0.103342,96766.0,96765.0,0.08851663]
[1732939087891,0.20618721,96766.0,96765.0,0.04191663]
[1732939088377,0.20618721,96766.0,96765.0,0.03691663]
[1732939088584,0.20618721,96766.0,96765.0,0.03891663]
[1732939088795,0.20618721,96766.0,96765.0,0.02991663]
[1732939089032,0.20618721,96766.0,96765.0,0.02891663]
[1732939089442,0.47738721,96766.0,96765.0,0.03091663]
[1732939089647,0.47825241,96766.0,96765.0,0.03091663]
[1732939089977,0.50922454,96766.0,96765.0,0.02891663]
[1732939090178,0.47825241,96766.0,96765.0,0.02991663]
[1732939090793,0.47825241,96766.0,96765.0,0.02691663]
[1732939091101,0.53067592,96766.0,96765.0,0.02691663]
[1732939091556,0.50925241,96766.0,96765.0,0.02791663]
[1732939091793,0.50925241,96766.0,96765.0,0.02691663]
[1732939091993,0.54019888,96766.0,96765.0,0.02691663]
[1732939092282,0.51725241,96766.0,96765.0,0.02791663]
[1732939092626,0.51725241,96766.0,96765.0,0.02691663]
[1732939092627,0.50425241,96766.0,96765.0,0.02691663]
[1732939092828,0.51225241,96766.0,96765.0,0.02791663]
[1732939093103,0.50925241,96766.0,96765.0,0.02791663]
[1732939093522,0.51225241,96766.0,96765.0,0.02791663]
[1732939093950,0.50925241,96766.0,96765.0,0.02791663]
[1732939094159,0.51225241,96766.0,96765.0,0.02791663]
[1732939099382,0.39105241,96766.0,96765.0,0.02791663]
[1732939099797,0.36805241,96766.0,96765.0,0.02791663]
[1732939103070,0.37262935,96766.0,96765.0,0.02791663]
[1732939103514,0.68265935,96766.0,96765.0,0.02791663]
[1732939104790,0.53265935,96766.0,96765.0,0.02791663]
[1732939105021,0.53265935,96766.0,96765.0,0.08601663]
[1732939105505,0.53112118,96766.0,96765.0,0.08601663]
[1732939117538,0.32647214,96766.0,96765.0,0.16371663]
[1732939117745,0.27992242,96766.0,96765.0,0.16371663]
[1732939117913,0.28450853,96766.0,96765.0,0.16371663]
[1732939118120,0.27992242,96766.0,96765.0,0.16371663]
[1732939118322,0.27992242,96766.0,96765.0,0.26705963]
[1732939118522,0.27992242,96766.0,96765.0,0.16571663]
[1732939118700,0.27992242,96766.0,96765.0,0.16471663]
[1732939118907,0.27992242,96766.0,96765.0,0.26805963]
[1732939119108,0.27992242,96766.0,96765.0,0.26905963]
[1732939119496,0.27992242,96766.0,96765.0,0.16571663]
[1732939119697,0.27992242,96766.0,96765.0,0.26905963]
[1732939124305,0.28078772,96766.0,96765.0,0.26905963]
[1732939132059,0.21614358,96766.0,96765.0,0.26905963]
[1732939132743,0.16959982,96766.0,96765.0,0.26905963]
[1732939135626,0.16959982,96766.0,96765.0,0.26705963]
[1732939135826,0.16959982,96766.0,96765.0,0.27105963]
[1732939136250,0.17059982,96766.0,96765.0,0.27705963]
[1732939142974,0.10595863,96766.0,96765.0,0.27705963]
[1732939147836,0.05941684,96766.0,96765.0,0.27705963]
[1732939148006,0.05941684,96766.0,96765.0,0.37990484]
[1732939148220,0.05941684,96766.0,96765.0,0.39990484]
[1732939148221,0.03724975,96766.0,96765.0,0.39990484]
[1732939148421,0.03724975,96766.0,96765.0,0.42290484]
[1732939148626,0.0018653,96766.0,96765.0,0.42290484]
[1732939149036,0.0008653,96766.0,96765.0,0.41690484]
[1732939149843,0.0018653,96766.0,96765.0,0.42090484]
[1732939150054,0.0028653,96766.0,96765.0,0.42790484]
[1732939150459,0.0018653,96766.0,96765.0,0.42090484]
[1732939150820,0.0028653,96766.0,96765.0,0.42990484]
[1732939151234,0.0018653,96766.0,96765.0,0.42090484]
[1732939151448,0.0018653,96766.0,96765.0,0.42990484]
[1732939154838,0.0018653,96766.0,96765.0,0.40690484]
[1732939155086,0.0018653,96766.0,96765.0,0.18071663]
[1732939155396,0.0018653,96766.0,96765.0,0.10301663]
[1732939156369,0.0008653,96766.0,96765.0,0.08501663]
[1732939156519,0.0008653,96766.0,96765.0,0.08684554]
[1732939156725,0.0008653,96766.0,96765.0,0.08984554]
[1732939157156,0.0008653,96766.0,96765.0,0.08684554]
[1732939157736,0.1042073,96766.0,96765.0,0.04191663]
[1732939157951,0.1042073,96766.0,96765.0,0.04591663]
[1732939158175,0.1042073,96766.0,96765.0,0.08561663]
[1732939158176,0.0008653,96766.0,96765.0,0.08561663]
[1732939158390,0.0008653,96766.0,96765.0,0.04591663]
[1732939158618,0.1042073,96766.0,96765.0,0.04091663]
[1732939159296,0.1052073,96766.0,96765.0,0.04091663]
[1732939159524,0.1052073,96766.0,96765.0,0.03091663]
[1732939159759,0.1042073,96766.0,96765.0,0.03091663]
[1732939159987,0.1042073,96766.0,96765.0,0.02691663]
[1732939160247,0.1042073,96766.0,96765.0,0.03791663]
[1732939160665,0.1042073,96766.0,96765.0,0.02691663]
[1732939160904,0.1042073,96766.0,96765.0,0.03691663]
[1732939161096,0.1042073,96766.0,96765.0,0.03891663]
[1732939161239,0.1042073,96766.0,96765.0,0.03991663]
[1732939161462,0.1042073,96766.0,96765.0,0.03791663]
[1732939161664,0.1052073,96766.0,96765.0,0.03791663]
[1732939161859,0.1052073,96766.0,96765.0,0.03891663]
[1732939181528,0.1052073,96766.0,96765.0,0.11611663]
[1732939181529,0.0018653,96766.0,96765.0,0.11611663]
[1732939181780,0.1052073,96766.0,96765.0,0.11611663]
[1732939183501,0.0018653,96766.0,96765.0,0.11611663]
[1732939183675,0.0018653,96766.0,96765.0,0.16591663]
[1732939184660,0.1052073,96766.0,96765.0,0.16591663]
[1732939185394,0.1052073,96766.0,96765.0,0.08871663]
[1732939201101,0.1052073,96766.0,96765.0,0.03891663]
[1732939206761,0.12597584,96766.0,96765.0,0.03891663]
[1732939208440,0.12585594,96766.0,96765.0,0.03891663]
[1732939209245,0.27585594,96766.0,96765.0,0.03891663]
[1732939210226,0.2550874,96766.0,96765.0,0.03891663]
[1732939210427,0.3813874,96766.0,96765.0,0.03891663]
[1732939210630,0.3813874,96766.0,96765.0,0.02891663]
[1732939210631,0.48423261,96766.0,96765.0,0.02891663]
[1732939211103,0.48411271,96766.0,96765.0,0.02891663]
[1732939211265,0.51506997,96766.0,96765.0,0.02891663]
[1732939211483,0.48411271,96766.0,96765.0,0.02891663]
[1732939212656,0.35781271,96766.0,96765.0,0.02891663]
[1732939213082,0.2549675,96766.0,96765.0,0.03891663]
[1732939213470,0.2547507,96766.0,96765.0,0.03891663]
[1732939215854,0.2547507,96766.0,96765.0,0.02891663]
[1732939215855,0.35729432,96766.0,96765.0,0.02891663]
[1732939215988,0.35684133,96766.0,96765.0,0.02891663]
[1732939218755,0.38777916,96766.0,96765.0,0.02891663]
[1732939218969,0.35666087,96766.0,96765.0,0.02891663]
[1732939219189,0.38712664,96766.0,96765.0,0.02791663]
[1732939219419,0.36218721,96766.0,96765.0,0.02891663]
[1732939220434,0.36218721,96766.0,96765.0,0.02791663]
[1732939220809,0.35918721,96766.0,96765.0,0.02691663]
[1732939221400,0.36318721,96766.0,96765.0,0.02791663]
[1732939221604,0.36618721,96766.0,96765.0,0.02791663]
[1732939222251,0.113342,96766.0,96765.0,0.03791663]
[1732939223517,0.260342,96766.0,96765.0,0.03791663]
[1732939223732,0.253342,96766.0,96765.0,0.03691663]
[1732939223938,0.254342,96766.0,96765.0,0.03691663]
[1732939224145,0.152,96766.0,96765.0,0.03691663]
[1732939224359,0.001,96766.0,96765.0,0.16471663]
[1732939224570,0.06471675,96775.0,96766.0,0.01]
[1732939224798,0.103332,96775.0,96774.0,0.01]
[1732939225638,0.253332,96775.0,96774.0,0.01]
[1732939225801,0.258332,96775.0,96774.0,0.01]
[1732939226993,0.006,96775.0,96774.0,0.01]
[1732939227184,0.254332,96775.0,96774.0,0.01]
[1732939227392,0.254332,96775.0,96774.0,0.1319]
[1732939227393,0.001,96775.0,96774.0,0.1319]
[1732939227597,0.004,96775.0,96774.0,0.235233]
[1732939227957,0.004,96775.0,96774.0,0.1319]
[1732939227958,0.005,96775.0,96774.0,0.1319]
[1732939228419,0.004,96775.0,96774.0,0.235233]
[1732939228631,0.004,96775.0,96774.0,0.237233]
[1732939228845,0.0041959,96776.0,96775.0,0.01]
[1732939230191,0.0041959,96776.0,96775.0,0.113332]
[1732939231141,0.0041959,96776.0,96775.0,0.116332]
[1732939231991,0.0041959,96776.0,96775.0,0.119332]
[1732939233023,0.0041959,96776.0,96775.0,0.241232]
[1732939237014,0.0050612,96776.0,96775.0,0.241232]
[1732939239561,0.06471675,96785.0,96784.0,0.01]
[1732939239822,0.15,96786.0,96785.0,0.01]
[1732939240162,0.10332,96786.0,96785.0,0.1319]
[1732939240376,0.25332,96786.0,96785.0,0.1319]
[1732939241241,0.25532,96786.0,96785.0,0.1319]
[1732939241852,0.25332,96786.0,96785.0,0.1319]
[1732939242048,0.15,96786.0,96785.0,0.1319]
[1732939242277,0.002,96786.0,96785.0,0.1319]
[1732939243341,0.15195867,96786.0,96785.0,0.1319]
[1732939243620,0.12727399,96786.0,96785.0,0.1319]
[1732939244169,0.1041771,96794.0,96793.0,0.01]
[1732939245413,0.00592487,96794.0,96793.0,0.01]
[1732939245849,0.15592487,96794.0,96793.0,0.01]
[1732939246016,0.25923687,96794.0,96793.0,0.01]
[1732939246400,0.15792487,96794.0,96793.0,0.01]
[1732939246813,0.15792487,96794.0,96793.0,0.0551]
[1732939247138,0.00792487,96794.0,96793.0,0.0551]
[1732939247359,0.00792487,96794.0,96793.0,0.1326]
[1732939248274,0.10423687,96794.0,96793.0,0.01]
[1732939248461,0.00092487,96794.0,96793.0,0.01]
[1732939248693,0.00392487,96794.0,96793.0,0.01]
[1732939248907,0.10723687,96794.0,96793.0,0.01]
[1732939249275,0.10723687,96794.0,96793.0,0.011]
[1732939249487,0.10823687,96794.0,96793.0,0.011]
[1732939250096,0.10723687,96794.0,96793.0,0.011]
[1732939250544,0.10723687,96794.0,96793.0,0.013]
[1732939254488,0.000865,96795.0,96793.0,0.013]
[1732939254687,0.254176,96795.0,96794.0,0.01]
[1732939255891,0.254176,96795.0,96794.0,0.011]
[1732939256533,0.35702121,96795.0,96794.0,0.001]
[1732939256941,0.35702121,96795.0,96794.0,0.011]
[1732939257153,0.35702121,96795.0,96794.0,0.001]
[1732939257783,0.43482121,96795.0,96794.0,0.001]
[1732939258199,0.45782121,96795.0,96794.0,0.001]
[1732939258624,0.103312,96794.0,96793.0,5.977e-05]
[1732939258893,0.37915721,96794.0,96793.0,5.977e-05]
[1732939259522,0.46796367,96794.0,96793.0,5.977e-05]
[1732939259760,0.54576367,96794.0,96793.0,5.977e-05]
[1732939260437,0.53678036,96794.0,96793.0,5.977e-05]
[1732939260670,0.53864566,96794.0,96793.0,5.977e-05]
[1732939261734,0.53964566,96794.0,96793.0,0.00105977]
[1732939261936,0.53864566,96794.0,96793.0,0.00105977]
[1732939262150,0.54164566,96794.0,96793.0,0.00105977]
[1732939262553,0.64447712,96794.0,96793.0,0.00105977]
[1732939262766,0.54164566,96794.0,96793.0,0.00105977]
[1732939264084,0.55164566,96794.0,96793.0,7.7e-07]
[1732939265041,0.54864566,96794.0,96793.0,7.7e-07]
[1732939265259,0.653019,96787.0,96786.0,0.0017306]
[1732939265450,0.78678736,96787.0,96786.0,0.0017306]
[1732939266267,0.80768936,96787.0,96786.0,0.0017306]
[1732939267547,1.11764936,96787.0,96786.0,0.0017306]
[1732939267720,1.12664936,96787.0,96786.0,0.0027306]
[1732939268132,1.13364936,96787.0,96786.0,0.0037306]
[1732939268548,1.12664936,96787.0,96786.0,0.0027306]
[1732939268699,1.09572621,96787.0,96786.0,0.0027306]
[1732939268903,1.10172621,96787.0,96786.0,0.0037306]
[1732939270356,0.97502621,96787.0,96786.0,0.0037306]
[1732939276279,0.72502621,96787.0,96786.0,0.0037306]
[1732939277593,0.72502621,96787.0,96786.0,0.1261306]
[1732939277594,0.68112421,96787.0,96786.0,0.1261306]
[1732939277765,0.68112421,96787.0,96786.0,0.1361306]
[1732939278215,0.67512421,96787.0,96786.0,0.1351306]
[1732939278410,0.67512421,96787.0,96786.0,0.1251306]
[1732939278619,0.66612421,96787.0,96786.0,0.1341306]
[1732939278833,0.67312421,96787.0,96786.0,0.1351306]
[1732939279047,0.67412421,96787.0,96786.0,0.1351306]
[1732939279199,0.57080521,96787.0,96786.0,0.1351306]
[1732939279404,0.57080521,96787.0,96786.0,0.1341306]
[1732939279405,0.66712421,96787.0,96786.0,0.1341306]
[1732939279997,0.56380521,96787.0,96786.0,0.1341306]
[1732939280390,0.46096,96787.0,96786.0,0.1341306]
[1732939280610,0.46096,96787.0,96786.0,0.2374506]
[1732939281030,0.46096,96787.0,96786.0,0.1341306]
[1732939281705,0.45996,96787.0,96786.0,0.1341306]
[1732939282391,0.45996,96787.0,96786.0,0.2374506]
[1732939282594,0.45996,96787.0,96786.0,0.1341306]
[1732939282917,0.45996,96787.0,96786.0,0.2374506]
[1732939283116,0.45996,96787.0,96786.0,0.1341306]
[1732939283987,0.45996,96787.0,96786.0,0.1351306]
[1732939284618,0.45996,96787.0,96786.0,0.1341306]
[1732939284837,0.45996,96787.0,96786.0,0.1361306]
[1732939285763,0.45996,96787.0,96786.0,0.1391306]
[1732939286860,0.45996,96787.0,96786.0,0.2424506]
[1732939287075,0.45996,96787.0,96786.0,0.1391306]
[1732939287810,0.51674074,96787.0,96786.0,0.1391306]
[1732939288033,0.30996,96787.0,96786.0,0.1391306]
[1732939288491,0.413279,96787.0,96786.0,0.1391306]
[1732939289111,0.30996,96787.0,96786.0,0.1391306]
[1732939289387,0.413279,96787.0,96786.0,0.1391306]
[1732939289598,0.51612421,96787.0,96786.0,0.1391306]
[1732939292390,0.30996,96787.0,96786.0,0.1391306]
[1732939293920,0.413279,96787.0,96786.0,0.1391306]
[1732939294661,0.30996,96787.0,96786.0,0.1391306]
[1732939295072,0.413279,96787.0,96786.0,0.1391306]
[1732939295279,0.30996,96787.0,96786.0,0.1391306]
[1732939295879,0.3108253,96787.0,96786.0,0.1391306]
[1732939296913,0.4141443,96787.0,96786.0,0.1391306]
[1732939297102,0.3108253,96787.0,96786.0,0.1391306]
[1732939297308,0.4141443,96787.0,96786.0,0.1391306]
[1732939301733,0.3108253,96787.0,96786.0,0.1391306]
[1732939302163,0.4141443,96787.0,96786.0,0.1391306]
[1732939302792,0.3108253,96787.0,96786.0,0.1391306]
[1732939302999,0.36760623,96787.0,96786.0,0.1391306]
[1732939303396,0.36677967,96787.0,96786.0,0.1391306]
[1732939304315,0.26346067,96787.0,96786.0,0.1391306]
[1732939305393,0.36677967,96787.0,96786.0,0.1391306]
[1732939306410,0.26346067,96787.0,96786.0,0.1391306]
[1732939309584,0.36677967,96787.0,96786.0,0.1391306]
[1732939310830,0.36677967,96787.0,96786.0,0.1391306]
[1732939311032,0.26346067,96787.0,96786.0,0.1391306]
[1732939311209,0.36677967,96787.0,96786.0,0.1391306]
[1732939313401,0.26346067,96787.0,96786.0,0.1391306]
[1732939313614,0.36677967,96787.0,96786.0,0.1391306]
[1732939313830,0.26346067,96787.0,96786.0,0.1391306]
[1732939314217,0.3021436,96787.0,96786.0,0.1391306]
[1732939314971,0.1988246,96787.0,96786.0,0.1391306]
[1732939316600,0.3021436,96787.0,96786.0,0.1391306]
[1732939317419,0.3021436,96787.0,96786.0,0.1291306]
[1732939317628,0.3021436,96787.0,96786.0,0.1391306]
[1732939317834,0.25560565,96787.0,96786.0,0.1391306]
[1732939322331,0.25560565,96787.0,96786.0,0.0632306]
[1732939322557,0.25560565,96787.0,96786.0,0.0067306]
[1732939322558,0.50845086,96787.0,96786.0,0.0067306]
[1732939327124,0.25560565,96787.0,96786.0,0.1301306]
[1732939327346,0.25560565,96787.0,96786.0,0.1401306]
[1732939336114,0.15228665,96787.0,96786.0,0.1401306]
[1732939337030,0.10574675,96787.0,96786.0,0.1401306]
[1732939339207,0.10574675,96787.0,96786.0,0.2434506]
[1732939343824,0.10574675,96787.0,96786.0,0.1401306]
[1732939347337,0.10574675,96787.0,96786.0,0.2434506]
[1732939348271,0.0002,96819.0,96786.0,0.2434506]
[1732939348272,0.0008649,96836.0,96819.0,0.1256]
[1732939348457,0.1041319,96836.0,96835.0,0.1356]
[1732939348672,0.10419168,96836.0,96835.0,0.1356]
[1732939348884,0.10419168,96836.0,96835.0,0.01]
[1732939348885,0.09919168,96836.0,96835.0,0.01]
[1732939349089,0.30986278,96836.0,96835.0,0.01]
[1732939350704,0.103282,96822.0,96821.0,0.0009943]
[1732939351148,0.309838,96825.0,96824.0,0.01]
[1732939351823,0.103282,96822.0,96821.0,0.0009943]
[1732939352048,0.104282,96822.0,96821.0,0.0079943]
[1732939352594,0.104282,96822.0,96821.0,0.0179943]